lending/lending_fUSD_20241229
["ID","MTS","AMOUNT","RATE_DAILY","PERIOD"]
[347082598,1735491050372,-500.0,0.00012358,2]
[347082599,1735491050381,-586.29039896,0.00012358,2]
[347082600,1735491050391,-500.0,0.00012358,2]
[347082601,1735491050401,-500.0,0.00012358,2]
[347082602,1735491050410,-2344.33,0.00012358,2]
[347082603,1735491050420,-601.67460452,0.00012358,2]
[347082604,1735491050429,-909.47,0.00012358,2]
[347082605,1735491050439,-591.69,0.00012358,2]
[347082606,1735491050450,-865.68,0.00012358,2]
[347082607,1735491050460,-500.0,0.00012358,2]
[347082608,1735491050469,-500.0,0.00012358,2]
[347082609,1735491050478,-701.25,0.00012358,2]
[347082610,1735491050488,-500.0,0.00012358,2]
[347082611,1735491050498,-561.14909762,0.00012358,2]
[347082612,1735491050508,-500.0,0.00012358,2]
[347082613,1735491050517,-500.0,0.00012358,2]
[347082614,1735491050527,-500.0,0.00012358,2]
[347082615,1735491050536,-602.07,0.00012358,2]
[347082616,1735491050545,-500.0,0.00012358,2]
[347082617,1735491050554,-500.0,0.00012358,2]
[347082618,1735491050564,-500.0,0.00012358,2]
[347082619,1735491050574,-500.0,0.00012358,2]
[347082620,1735491050584,-500.0,0.00012358,2]
[347082621,1735491050593,-500.0,0.00012358,2]
[347082622,1735491050603,-500.0,0.00012358,2]
[347082623,1735491050612,-500.0,0.00012358,2]
[347082624,1735491050621,-500.0,0.00012358,2]
[347082625,1735491050631,-500.0,0.00012358,2]
[347082626,1735491050640,-500.0,0.00012358,2]
[347082627,1735491050650,-500.0,0.00012358,2]
[347082628,1735491050659,-500.0,0.00012358,2]
[347082629,1735491050669,-500.0,0.00012358,2]
[347082630,1735491050678,-500.0,0.00012358,2]
[347082631,1735491050688,-500.0,0.00012358,2]
[347082632,1735491050697,-500.0,0.00012358,2]
[347082633,1735491050706,-500.0,0.00012358,2]
[347082634,1735491050717,-1953.32,0.00012358,2]
[347082635,1735491050727,-500.0,0.00012358,2]
[347082636,1735491050735,-500.0,0.00012358,2]
[347082637,1735491050745,-500.0,0.00012358,2]
[347082638,1735491050755,-500.0,0.00012358,2]
[347082639,1735491050765,-500.0,0.00012358,2]
[347082640,1735491050776,-500.0,0.00012358,2]
[347082641,1735491050786,-500.0,0.00012358,2]
[347082642,1735491050795,-500.0,0.00012358,2]
[347082643,1735491050805,-500.0,0.00012358,2]
[347082644,1735491050815,-621.43,0.00012358,2]
[347082645,1735491050824,-500.0,0.00012358,2]
[347082646,1735491050834,-500.0,0.00012358,2]
[347082647,1735491050843,-500.0,0.00012358,2]
[347082648,1735491050853,-500.0,0.00012358,2]
[347082649,1735491050862,-500.0,0.00012358,2]
[347082650,1735491050872,-873.53,0.00012358,2]
[347082651,1735491050882,-500.0,0.00012358,2]
[347082652,1735491050891,-500.0,0.00012358,2]
[347082653,1735491050901,-500.0,0.00012358,2]
[347082654,1735491050911,-500.0,0.00012358,2]
[347082655,1735491050921,-500.0,0.00012358,2]
[347082656,1735491050932,-500.0,0.00012358,2]
[347082657,1735491050941,-500.0,0.00012358,2]
[347082658,1735491050951,-722.38,0.00012358,2]
[347082659,1735491050961,-500.0,0.00012358,2]
[347082660,1735491050970,-500.0,0.00012358,2]
[347082661,1735491050980,-500.0,0.00012358,2]
[347082662,1735491050989,-500.0,0.00012358,2]
[347082663,1735491051000,-500.0,0.00012358,2]
[347082664,1735491051010,-462.30903551,0.00012358,2]
[347082665,1735491051019,-500.0,0.00012358,2]
[347082666,1735491051029,-500.0,0.00012358,2]
[347082667,1735491051039,-500.0,0.00012358,2]
[347082668,1735491051048,-500.0,0.00012358,2]
[347082669,1735491051058,-484.72,0.00012358,2]
[347082670,1735491051069,-500.0,0.00012358,2]
[347082671,1735491051080,-269.18218152,0.00012358,2]
[347082672,1735491051089,-331.83,0.00012358,2]
[347082673,1735491051103,-500.0,0.00012358,2]
[347082674,1735491051112,-500.0,0.00012358,2]
[347082675,1735491051124,-2838.92,0.00012358,2]
[347082676,1735491051138,-500.0,0.00012358,2]
[347082677,1735491051148,-500.0,0.00012358,2]
[347082678,1735491051157,-3628.4,0.00012358,2]
[347082679,1735491051167,-500.0,0.00012358,2]
[347082680,1735491051180,-876.23,0.00012358,2]
[347082681,1735491051191,-3692.81,0.00012358,2]
[347082682,1735491051201,-500.0,0.00012358,2]
[347082683,1735491051211,-1101.36,0.00012358,2]
[347082684,1735491051221,-870.98,0.00012358,2]
[347082685,1735491051231,-500.0,0.00012358,2]
[347082686,1735491051241,-1348.28,0.00012358,2]
[347082687,1735491051251,-1836.05,0.00012358,2]
[347082688,1735491051260,-500.0,0.00012359,2]
[347082689,1735491051270,-500.0,0.00012359,2]
[347082690,1735491051280,-999.87,0.00012359,2]
[347082691,1735491051290,-510.19,0.00012359,2]
[347082692,1735491051301,-1921.52,0.00012359,2]
[347082693,1735491051310,-546.78,0.00012359,2]
[347082694,1735491051320,-3871.1,0.00012359,2]
[347082695,1735491051329,-592.58,0.00012359,2]
[347082696,1735491051338,-513.22,0.00012359,2]
[347082697,1735491051349,-500.0,0.00012359,2]
[347082698,1735491051358,-500.0,0.00012359,2]
[347082699,1735491051368,-1175.67,0.00012359,2]
[347082700,1735491051377,-420.0,0.00012359,2]
[347082701,1735491051387,-500.0,0.00012359,2]
[347082702,1735491051397,-500.0,0.00012359,2]
[347082703,1735491051407,-500.0,0.00012359,2]
[347082704,1735491051417,-515.44,0.0001236,2]
[347082705,1735491051427,-500.0,0.0001236,2]
[347082706,1735491051437,-500.0,0.0001236,2]
[347082707,1735491051446,-500.0,0.0001236,2]
[347082708,1735491051456,-500.0,0.0001236,2]
[347082709,1735491051466,-615.03,0.0001236,2]
[347082710,1735491051476,-500.0,0.0001236,2]
[347082711,1735491051485,-500.0,0.0001236,2]
[347082712,1735491051494,-500.0,0.0001236,2]
[347082713,1735491051505,-500.0,0.0001236,2]
[347082714,1735491051515,-500.0,0.0001236,2]
[347082715,1735491051524,-500.0,0.0001236,2]
[347082716,1735491051534,-500.0,0.0001236,2]
[347082717,1735491051543,-899.47,0.0001236,2]
[347082718,1735491051553,-500.0,0.0001236,2]
[347082719,1735491051562,-500.0,0.0001236,2]
[347082720,1735491051571,-500.0,0.0001236,2]
[347082721,1735491051580,-815.97,0.0001236,2]
[347082722,1735491051590,-18568.48,0.0001236,2]
[347082723,1735491051600,-634.64,0.0001236,2]
[347082724,1735491051609,-507.15727206,0.0001236,2]
[347082725,1735491051619,-500.0,0.0001236,2]
[347082726,1735491051628,-500.0,0.0001236,2]
[347082727,1735491051637,-545.9,0.0001236,2]
[347082728,1735491051647,-969.49,0.0001236,2]
[347082729,1735491051657,-500.0,0.0001236,2]
[347082730,1735491051666,-500.0,0.0001236,2]
[347082731,1735491051676,-1026.67,0.0001236,2]
[347082732,1735491051687,-500.0,0.0001236,2]
[347082733,1735491051697,-500.0,0.0001236,2]
[347082734,1735491051711,-500.0,0.0001236,2]
[347082735,1735491051721,-500.0,0.0001236,2]
[347082736,1735491051732,-2110.5,0.0001236,2]
[347082737,1735491051742,-500.0,0.0001236,2]
[347082738,1735491051753,-500.0,0.0001236,2]
[347082739,1735491051764,-500.0,0.0001236,2]
[347082740,1735491051774,-500.0,0.0001236,2]
[347082741,1735491051783,-500.0,0.0001236,2]
[347082742,1735491051793,-500.0,0.0001236,2]
[347082743,1735491051803,-500.0,0.0001236,2]
[347082744,1735491051813,-500.0,0.0001236,2]
[347082745,1735491051823,-525.8476998,0.0001236,2]
[347082746,1735491051833,-703.26,0.0001236,2]
[347082747,1735491051842,-500.0,0.0001236,2]
[347082748,1735491051852,-510.62,0.0001236,2]
[347082749,1735491051863,-229.61524152,0.0001236,2]
[347082750,1735491051873,-500.0,0.0001236,2]
[347082751,1735491051882,-500.0,0.0001236,2]
[347082752,1735491051892,-500.0,0.0001236,2]
[347082753,1735491051902,-500.0,0.0001236,2]
[347082754,1735491051911,-500.0,0.0001236,2]
[347082755,1735491051921,-500.0,0.0001236,2]
[347082756,1735491051931,-552.22018547,0.0001236,2]
[347082757,1735491051941,-500.0,0.0001236,2]
[347082758,1735491051951,-500.0,0.0001236,2]
[347082759,1735491051961,-570.93,0.0001236,2]
[347082760,1735491051971,-1499.18,0.00012361,2]
[347082761,1735491051981,-500.0,0.00012361,2]
[347082762,1735491051990,-578.37,0.00012361,2]
[347082763,1735491052000,-500.0,0.00012361,2]
[347082764,1735491052010,-500.0,0.00012361,2]
[347082765,1735491052020,-548.58,0.00012361,2]
[347082766,1735491052030,-500.0,0.00012361,2]
[347082767,1735491052041,-700.84,0.00012361,2]
[347082768,1735491052050,-2940.43,0.00012361,2]
[347082769,1735491052061,-5636.03,0.00012361,2]
[347082770,1735491052070,-556.4,0.00012361,2]
[347082771,1735491052080,-500.0,0.00012361,2]
[347082772,1735491052090,-1813.25,0.00012361,2]
[347082773,1735491052305,-640.38,0.00012361,2]
[347082774,1735491052358,-15027.68,0.00012361,2]
[347082775,1735491052369,-500.0,0.00012361,2]
[347082776,1735491052380,-500.0,0.00012361,2]
[347082777,1735491052390,-500.0,0.00012361,2]
[347082778,1735491052400,-1140.36,0.00012361,2]
[347082779,1735491052410,-4325.16,0.00012362,2]
[347082780,1735491052420,-500.0,0.00012362,2]
[347082781,1735491052429,-1000.0,0.00012362,2]
[347082782,1735491052439,-500.0,0.00012362,2]
[347082783,1735491052448,-500.0,0.00012362,2]
[347082784,1735491052459,-1186.66,0.00012362,2]
[347082785,1735491052468,-692.34,0.00012362,2]
[347082786,1735491052478,-500.0,0.00012395,2]
[347082787,1735491052488,-30000.0,0.00012498,2]
[347082788,1735491052498,-500.0,0.00012532,2]
[347082789,1735491052509,-500.0,0.00012532,2]
[347082790,1735491052519,-500.0,0.00012532,2]
[347082791,1735491052529,-500.0,0.00012532,2]
[347082792,1735491052538,-500.0,0.00012532,2]
[347082793,1735491052548,-791.71,0.00012532,2]
[347082794,1735491052557,-500.0,0.00012532,2]
[347082795,1735491052567,-500.0,0.00012532,2]
[347082796,1735491052576,-500.0,0.00012532,2]
[347082797,1735491052586,-301.43573706,0.00012532,2]
[347082798,1735491052596,-348.04813248,0.00012532,2]
[347082799,1735491052605,-602.9391089,0.00012532,2]
[347082800,1735491052615,-500.0,0.00012532,2]
[347082801,1735491052625,-500.0,0.00012532,2]
[347082802,1735491052634,-950.63,0.00012532,2]
[347082803,1735491052644,-514.09379282,0.00012532,2]
[347082804,1735491052653,-1210.43,0.00012532,2]
[347082805,1735491052663,-500.0,0.00012532,2]
[347082806,1735491052672,-500.0,0.00012532,2]
[347082807,1735491052682,-500.0,0.00012532,2]
[347082808,1735491052691,-506.02717588,0.00012532,2]
[347082809,1735491052700,-500.0,0.00012532,2]
[347082810,1735491052711,-500.0,0.00012532,2]
[347082811,1735491052720,-500.0,0.00012532,2]
[347082812,1735491052730,-500.0,0.00012532,2]
[347082813,1735491052740,-500.0,0.00012532,2]
[347082814,1735491052749,-500.0,0.00012532,2]
[347082815,1735491052759,-500.0,0.00012532,2]
[347082816,1735491052768,-552.11542805,0.00012532,2]
[347082817,1735491052778,-500.0,0.00012532,2]
[347082818,1735491052788,-500.0,0.00012532,2]
[347082819,1735491052797,-500.0,0.00012532,2]
[347082820,1735491052809,-500.0,0.00012532,2]
[347082821,1735491052819,-500.0,0.00012532,2]
[347082822,1735491052828,-150.0,0.000126,2]
[347082823,1735491052839,-150.0,0.000126,2]
[347082824,1735491052848,-150.0,0.000126,2]
[347082825,1735491052858,-150.0,0.000126,2]
[347082826,1735491052867,-1159.18,0.00012631,2]
[347082827,1735491052877,-500.0,0.00012631,2]
[347082828,1735491052887,-500.0,0.00012631,2]
[347082829,1735491052897,-522.02524699,0.00012631,2]
[347082830,1735491052906,-500.0,0.00012631,2]
[347082831,1735491052916,-520.55,0.00012631,2]
[347082832,1735491052925,-500.0,0.00012631,2]
[347082833,1735491052935,-500.0,0.00012631,2]
[347082834,1735491052944,-500.0,0.00012631,2]
[347082835,1735491052954,-500.0,0.00012631,2]
[347082836,1735491052964,-500.0,0.00012631,2]
[347082837,1735491052973,-500.0,0.00012631,2]
[347082838,1735491052983,-500.0,0.00012631,2]
[347082839,1735491052993,-500.0,0.00012631,2]
[347082840,1735491053003,-500.0,0.00012631,2]
[347082841,1735491053013,-705.2,0.00012631,2]
[347082842,1735491053022,-500.0,0.00012631,2]
[347082843,1735491053032,-500.0,0.00012631,2]
[347082844,1735491053042,-500.0,0.00012631,2]
[347082845,1735491053051,-150.701539,0.00012631,2]
[347082846,1735491053062,-500.0,0.00012631,2]
[347082847,1735491053072,-500.0,0.00012631,2]
[347082848,1735491053081,-2192.36,0.00012631,2]
[347082849,1735491053090,-500.0,0.00012631,2]
[347082850,1735491053103,-500.0,0.00012631,2]
[347082851,1735491053112,-500.0,0.00012631,2]
[347082852,1735491053122,-500.0,0.00012631,2]
[347082853,1735491053133,-500.0,0.00012631,2]
[347082854,1735491053143,-500.0,0.00012631,2]
[347082855,1735491053153,-2173.71,0.00012631,2]
[347082856,1735491053162,-500.0,0.00012631,2]
[347082857,1735491053173,-1775.22,0.00012631,2]
[347082858,1735491053182,-1409.21,0.00012631,2]
[347082859,1735491053192,-500.0,0.00012631,2]
[347082860,1735491053202,-500.0,0.00012631,2]
[347082861,1735491053212,-500.0,0.00012631,2]
[347082862,1735491053223,-500.0,0.00012631,2]
[347082863,1735491053233,-500.0,0.00012631,2]
[347082864,1735491053243,-329.57971272,0.00012631,2]
[347082865,1735491053252,-500.0,0.00012631,2]
[347082866,1735491053263,-500.0,0.00012631,2]
[347082867,1735491053272,-500.0,0.00012631,2]
[347082868,1735491053282,-500.0,0.00012631,2]
[347082869,1735491053291,-500.0,0.00012631,2]
[347082870,1735491053301,-500.0,0.00012631,2]
[347082871,1735491053310,-2866.13,0.00012631,2]
[347082872,1735491053321,-500.0,0.00012631,2]
[347082873,1735491053330,-500.0,0.00012631,2]
[347082874,1735491053339,-500.0,0.00012631,2]
[347082875,1735491053349,-500.0,0.00012631,2]
[347082876,1735491053358,-500.0,0.00012631,2]
[347082877,1735491053368,-500.0,0.00012631,2]
[347082878,1735491053377,-500.0,0.00012631,2]
[347082879,1735491053388,-500.0,0.00012631,2]
[347082880,1735491053398,-500.0,0.00012631,2]
[347082881,1735491053408,-500.0,0.00012631,2]
[347082882,1735491053418,-500.0,0.00012631,2]
[347082883,1735491053428,-500.0,0.00012631,2]
[347082884,1735491053438,-1154.75,0.00012631,2]
[347082885,1735491053448,-500.0,0.00012631,2]
[347082886,1735491053458,-1890.37,0.00012631,2]
[347082887,1735491053468,-781.33,0.00012631,2]
[347082888,1735491053477,-500.0,0.00012631,2]
[347082889,1735491053487,-500.0,0.00012631,2]
[347082890,1735491053497,-1791.32,0.00012631,2]
[347082891,1735491053506,-500.0,0.00012631,2]
[347082892,1735491053516,-500.0,0.00012631,2]
[347082893,1735491053525,-1113.85,0.00012631,2]
[347082894,1735491053535,-500.0,0.00012631,2]
[347082895,1735491053544,-500.0,0.00012631,2]
[347082896,1735491053554,-500.0,0.00012631,2]
[347082897,1735491053563,-500.0,0.00012631,2]
[347082898,1735491053572,-500.0,0.00012631,2]
[347082899,1735491053582,-695.21,0.00012631,2]
[347082900,1735491053592,-500.0,0.00012631,2]
[347082901,1735491053602,-500.0,0.00012631,2]
[347082902,1735491053612,-500.0,0.00012631,2]
[347082903,1735491053622,-500.0,0.00012631,2]
[347082904,1735491053631,-822.12,0.00012631,2]
[347082905,1735491053641,-500.0,0.00012631,2]
[347082906,1735491053651,-500.0,0.00012631,2]
[347082907,1735491053660,-500.0,0.00012631,2]
[347082908,1735491053669,-500.0,0.00012631,2]
[347082909,1735491053679,-500.0,0.00012631,2]
[347082910,1735491053689,-500.0,0.00012631,2]
[347082911,1735491053699,-577.92,0.00012631,2]
[347082912,1735491053709,-500.0,0.00012631,2]
[347082913,1735491053719,-500.0,0.00012631,2]
[347082914,1735491053729,-500.0,0.00012631,2]
[347082915,1735491053738,-870.38,0.00012631,2]
[347082916,1735491053748,-500.0,0.00012631,2]
[347082917,1735491053758,-500.0,0.00012631,2]
[347082918,1735491053768,-500.0,0.00012631,2]
[347082919,1735491053777,-500.0,0.00012631,2]
[347082920,1735491053787,-500.0,0.00012631,2]
[347082921,1735491053797,-500.0,0.00012631,2]
[347082922,1735491053807,-500.0,0.00012631,2]
[347082923,1735491053816,-1015.64,0.00012631,2]
[347082924,1735491053827,-3278.13,0.00012631,2]
[347082925,1735491053836,-500.0,0.00012631,2]
[347082926,1735491053846,-500.0,0.00012631,2]
[347082927,1735491053855,-500.0,0.00012631,2]
[347082928,1735491053864,-500.0,0.00012631,2]
[347082929,1735491053873,-500.0,0.00012631,2]
[347082930,1735491053883,-500.0,0.00012631,2]
[347082931,1735491053892,-500.0,0.00012631,2]
[347082932,1735491053903,-500.0,0.00012631,2]
[347082933,1735491053912,-620.96,0.00012631,2]
[347082934,1735491053921,-704.14,0.00012631,2]
[347082935,1735491053931,-1840.21,0.00012631,2]
[347082936,1735491053940,-500.0,0.00012632,2]
[347082937,1735491053950,-500.0,0.00012632,2]
[347082938,1735491053959,-500.0,0.00012632,2]
[347082939,1735491053968,-500.0,0.00012632,2]
[347082940,1735491053977,-500.0,0.00012632,2]
[347082941,1735491053986,-532.38049605,0.00012632,2]
[347082942,1735491053995,-816.1,0.00012632,2]
[347082943,1735491054005,-212.92400968,0.00012632,2]
[347082944,1735491054014,-445.27483434,0.00012632,2]
[347082945,1735491054023,-500.0,0.00012632,2]
[347082946,1735491054032,-500.0,0.00012632,2]
[347082947,1735491054041,-590.14,0.00012632,2]
[347082948,1735491054051,-500.0,0.00012632,2]
[347082949,1735491054060,-500.0,0.00012632,2]
[347082950,1735491054071,-500.0,0.00012632,2]
[347082951,1735491054081,-400.22956565,0.00012632,2]
[347082952,1735491054090,-500.0,0.00012632,2]
[347082953,1735491054102,-500.0,0.00012632,2]
[347082954,1735491054111,-251.7779918,0.00012632,2]
[347082955,1735491054119,-500.0,0.00012632,2]
[347082956,1735491054129,-202.0,0.00012632,2]
[347082957,1735491054139,-408.97480152,0.00012632,2]
[347082958,1735491054148,-500.0,0.00012632,2]
[347082959,1735491054157,-500.0,0.00012632,2]
[347082960,1735491054167,-500.0,0.00012632,2]
[347082961,1735491054176,-500.0,0.00012632,2]
[347082962,1735491054187,-500.0,0.00012632,2]
[347082963,1735491054196,-500.0,0.00012632,2]
[347082964,1735491054205,-1340.36,0.00012632,2]
[347082965,1735491054214,-500.0,0.00012632,2]
[347082966,1735491054223,-762.4,0.00012632,2]
[347082967,1735491054232,-500.0,0.00012632,2]
[347082968,1735491054241,-500.0,0.00012632,2]
[347082969,1735491054251,-500.0,0.00012632,2]
[347082970,1735491054260,-500.0,0.00012632,2]
[347082971,1735491054269,-500.0,0.00012632,2]
[347082972,1735491054278,-500.0,0.00012632,2]
[347082973,1735491054287,-500.0,0.00012632,2]
[347082974,1735491054296,-500.0,0.00012632,2]
[347082975,1735491054305,-500.0,0.00012632,2]
[347082976,1735491054314,-500.0,0.00012632,2]
[347082977,1735491054324,-2344.33,0.00012632,2]
[347082978,1735491054333,-909.47,0.00012632,2]
[347082979,1735491054342,-865.68,0.00012632,2]
[347082980,1735491054351,-500.0,0.00012632,2]
[347082981,1735491054360,-500.0,0.00012632,2]
[347082982,1735491054369,-701.25,0.00012632,2]
[347082983,1735491054379,-500.0,0.00012632,2]
[347082984,1735491054388,-500.0,0.00012632,2]
[347082985,1735491054397,-500.0,0.00012632,2]
[347082986,1735491054406,-500.0,0.00012632,2]
[347082987,1735491054415,-602.07,0.00012632,2]
[347082988,1735491054424,-500.0,0.00012632,2]
[347082989,1735491054433,-500.0,0.00012632,2]
[347082990,1735491054442,-500.0,0.00012632,2]
[347082991,1735491054451,-500.0,0.00012632,2]
[347082992,1735491054460,-188.72,0.00012632,2]
[347082993,1735491054469,-500.0,0.00012632,2]
[347082994,1735491054478,-500.0,0.00012632,2]
[347082995,1735491054487,-500.0,0.00012632,2]
[347082996,1735491054497,-500.0,0.00012632,2]
[347082997,1735491054506,-500.0,0.00012632,2]
[347082998,1735491054515,-500.0,0.00012632,2]
[347082999,1735491054525,-500.0,0.00012632,2]
[347083000,1735491054535,-500.0,0.00012632,2]
[347083001,1735491054544,-500.0,0.00012632,2]
[347083002,1735491054553,-500.0,0.00012632,2]
[347083003,1735491054563,-500.0,0.00012632,2]
[347083004,1735491054572,-500.0,0.00012632,2]
[347083005,1735491054581,-500.0,0.00012632,2]
[347083006,1735491054590,-1953.32,0.00012632,2]
[347083007,1735491054599,-500.0,0.00012632,2]
[347083008,1735491054607,-500.0,0.00012632,2]
[347083009,1735491054616,-500.0,0.00012632,2]
[347083010,1735491054626,-500.0,0.00012632,2]
[347083011,1735491054636,-259.4,0.00012632,2]
[347083012,1735491054645,-500.0,0.00012632,2]
[347083013,1735491054654,-500.0,0.00012632,2]
[347083014,1735491054663,-500.0,0.00012632,2]
[347083015,1735491054672,-500.0,0.00012632,2]
[347083016,1735491054681,-621.43,0.00012632,2]
[347083017,1735491054743,-500.0,0.00012632,2]
[347083018,1735491054752,-500.0,0.00012632,2]
[347083019,1735491054761,-500.0,0.00012632,2]
[347083020,1735491054771,-500.0,0.00012632,2]
[347083021,1735491054780,-500.0,0.00012632,2]
[347083022,1735491054790,-873.53,0.00012632,2]
[347083023,1735491054799,-319.42714186,0.00012632,2]
[347083024,1735491054808,-500.0,0.00012632,2]
[347083025,1735491054818,-500.0,0.00012632,2]
[347083026,1735491054827,-500.0,0.00012632,2]
[347083027,1735491054836,-500.0,0.00012632,2]
[347083028,1735491054845,-232.84,0.00012632,2]
[347083029,1735491054854,-500.0,0.00012632,2]
[347083030,1735491054863,-722.38,0.00012632,2]
[347083031,1735491054873,-500.0,0.00012632,2]
[347083032,1735491054882,-500.0,0.00012632,2]
[347083033,1735491054891,-500.0,0.00012632,2]
[347083034,1735491054900,-500.0,0.00012632,2]
[347083035,1735491054909,-500.0,0.00012632,2]
[347083036,1735491054918,-504.19,0.00012632,2]
[347083037,1735491054927,-174.4,0.00012632,2]
[347083038,1735491054936,-500.0,0.00012632,2]
[347083039,1735491054946,-500.0,0.00012632,2]
[347083040,1735491054954,-500.0,0.00012632,2]
[347083041,1735491054964,-500.0,0.00012632,2]
[347083042,1735491054973,-500.0,0.00012632,2]
[347083043,1735491054982,-2838.92,0.00012632,2]
[347083044,1735491054991,-500.0,0.00012632,2]
[347083045,1735491055001,-500.0,0.00012632,2]
[347083046,1735491055015,-3628.4,0.00012632,2]
[347083047,1735491055023,-500.0,0.00012632,2]
[347083048,1735491055032,-876.23,0.00012632,2]
[347083049,1735491055042,-3692.81,0.00012632,2]
[347083050,1735491055051,-500.0,0.00012632,2]
[347083051,1735491055060,-1101.36,0.00012632,2]
[347083052,1735491055070,-870.98,0.00012632,2]
[347083053,1735491055079,-500.0,0.00012632,2]
[347083054,1735491055088,-1348.28,0.00012632,2]
[347083055,1735491055100,-1836.05,0.00012632,2]
[347083056,1735491055109,-368.23,0.00012633,2]
[347083057,1735491055118,-500.0,0.00012633,2]
[347083058,1735491055128,-999.87,0.00012633,2]
[347083059,1735491055137,-510.19,0.00012633,2]
[347083060,1735491055146,-1921.52,0.00012633,2]
[347083061,1735491055155,-546.78,0.00012633,2]
[347083062,1735491055164,-3871.1,0.00012633,2]
[347083063,1735491055175,-592.58,0.00012633,2]
[347083064,1735491055184,-513.22,0.00012633,2]
[347083065,1735491055193,-500.0,0.00012633,2]
[347083066,1735491055203,-500.0,0.00012633,2]
[347083067,1735491055211,-1175.67,0.00012633,2]
[347083068,1735491055221,-500.0,0.00012633,2]
[347083069,1735491055230,-500.0,0.00012633,2]
[347083070,1735491055240,-500.0,0.00012633,2]
[347083071,1735491055250,-515.44,0.00012634,2]
[347083072,1735491055266,-205.47848494,0.00012634,2]
[347083073,1735491055276,-367.39091011,0.00012634,2]
[347083074,1735491055286,-500.0,0.00012634,2]
[347083075,1735491055295,-500.0,0.00012634,2]
[347083076,1735491055304,-615.03,0.00012634,2]
[347083077,1735491055313,-500.0,0.00012634,2]
[347083078,1735491055323,-500.0,0.00012634,2]
[347083079,1735491055332,-235.46753852,0.00012634,2]
[347083080,1735491055342,-500.0,0.00012634,2]
[347083081,1735491055351,-500.0,0.00012634,2]
[347083082,1735491055360,-500.0,0.00012634,2]
[347083083,1735491055369,-500.0,0.00012634,2]
[347083084,1735491055378,-899.47,0.00012634,2]
[347083085,1735491055388,-500.0,0.00012634,2]
[347083086,1735491055397,-500.0,0.00012634,2]
[347083087,1735491055407,-483.83502476,0.00012634,2]
[347083088,1735491055417,-815.97,0.00012634,2]
[347083089,1735491055425,-18568.48,0.00012634,2]
[347083090,1735491055434,-500.0,0.00012634,2]
[347083091,1735491055444,-500.0,0.00012634,2]
[347083092,1735491055453,-545.9,0.00012634,2]
[347083093,1735491055463,-969.49,0.00012634,2]
[347083094,1735491055472,-500.0,0.00012634,2]
[347083095,1735491055481,-500.0,0.00012634,2]
[347083096,1735491055491,-1026.67,0.00012634,2]
[347083097,1735491055499,-500.0,0.00012634,2]